[Event "48th Ciutat de Badalona Open 2024"]
[Site "Badalona"]
[Date "2024.08.06"]
[Round "5.10"]
[White "Lozano Ruiz, David"]
[Black "Perez Berenguer, Valentin"]
[Result "1-0"]
[ECO "A85"]
[WhiteElo "1894"]
[BlackElo "1821"]
[Annotator "NA RC"]
[PlyCount "81"]
[EventDate "2024.07.29"]
[EventType "swiss"]
[EventCountry "ESP"]
[SourceTitle "playchess.com"]
[Source "ChessBase"]
[SourceQuality "1"]
[TimeControl "5400+30"]

1. d4 {[%emt 0:02:18]} e6 {[%emt 0:00:09]} 2. c4 {[%emt 0:00:04]} f5 {[%emt 0:00:06]} 3. Nc3 {[%emt 0:02:34]} Nf6 {[%emt 1:31:45]} 4. Bf4 {[%emt 0:01:21]} d6 {[%emt 0:00:00]} 5. Nf3 {[%emt 0:01:34]} Be7 {[%emt 0:01:00]} 6. Qc2 {[%emt 0:03:17]} O-O {[%emt 0:00:00]} 7. e3 {[%emt 0:02:19]} Qe8 {[%emt 0:00:00]} 8. Bd3 {[%emt 0:00:42]} Nc6 {[%emt 0:00:00]} 9. a3 {[%emt 0:01:39]} Qh5 {[%emt 0:00:00]} 10. h3 {[%emt 1:19:42]} a6 {[%emt 0:00:00]} 11. O-O-O {[%emt 0:00:00]} Qe8 {[%emt 0:00:00]} 12. g4 {[%emt 0:00:00]} g6 {[%emt 0:00:00]} 13. Bh6 {[%emt 0:00:00]} Rf7 {[%emt 0:00:00]} 14. Ng5 {[%emt 0:00:00]} Ne4 {[%emt 0:00:00]} 15. Nxf7 {[%emt 0:00:00]} Nxc3 {[%emt 0:00:00]} 16. Qxc3 {[%emt 0:00:00]} Qxf7 {[%emt 0:00:00]} 17. gxf5 {[%emt 0:00:00]} exf5 {[%emt 0:00:00]} 18. h4 {[%emt 0:04:00]} Bf6 {[%emt 0:00:00]} 19. Qc2 {[%emt 0:00:30]} Ne7 {[%emt 0:07:00]} 20. Rdg1 {[%emt 0:00:30]} Bd7 {[%emt 0:00:00]} 21. h5 {[%emt 0:00:00]} b5 {[%emt 0:00:00]} 22. Bg5 {[%emt 0:00:00]} bxc4 {[%emt 0:00:00]} 23. Bxc4 {[%emt 0:00:00]} d5 {[%emt 0:00:00]} 24. hxg6 {[%emt 0:02:00]} hxg6 {[%emt 0:00:00]} 25. Bxf6 {[%emt 0:00:00]} Qxf6 {[%emt 0:00:00]} 26. Bd3 {[%emt 0:00:00]} Rb8 {[%emt 0:00:00]} 27. f4 {[%emt 0:00:00]} Rb6 {[%emt 0:00:00]} 28. Qh2 {[%emt 0:00:00]} Qg7 {[%emt 0:00:00]} 29. Rg3 {[%emt 0:00:00]} Kf7 {[%emt 0:00:00]} 30. Qh7 {[%emt 0:00:00]} a5 {[%emt 0:00:00]} 31. Rgh3 {[%emt 0:00:00]} Rc6+ {[%emt 0:00:00]} 32. Kb1 {[%emt 0:00:00]} Re6 {[%emt 0:00:00]} 33. Qh4 {[%emt 0:00:00]} Qf6 {[%emt 0:00:00]} 34. Qe1 {[%emt 0:00:00]} Nc6 {[%emt 0:00:00]} 35. Qc3 {[%emt 0:00:00]} Re8 {[%emt 0:00:00]} 36. Rh7+ {[%emt 0:00:00]} Ke6 {[%emt 0:00:00]} 37. Bb5 {[%emt 0:00:00]} Ne7 {[%emt 0:00:00]} 38. Qxa5 {[%emt 0:00:00]} Bxb5 {[%emt 0:00:00]} 39. Qxb5 {[%emt 0:00:00]} Rc8 {[%emt 0:00:00]} 40. Qa6+ {[%emt 0:00:00]} c6 {[%emt 0:00:00]} 41. Rxe7+ {[%emt 0:08:30]} 1-0

[Event "48th Ciutat de Badalona Open 2024"]
[Site "Badalona"]
[Date "2024.08.07"]
[Round "6.1"]
[White "Berdayes Ason, Dylan Isidro"]
[Black "Vitier Vazquez, Cristian"]
[Result "1-0"]
[ECO "D12"]
[WhiteElo "2476"]
[BlackElo "2357"]
[Annotator "RC"]
[PlyCount "53"]
[EventDate "2024.07.29"]
[EventType "swiss"]
[EventCountry "ESP"]
[SourceTitle "playchess.com"]
[Source "ChessBase"]
[SourceQuality "1"]
[TimeControl "5400+30"]

1. c4 {[%emt 0:00:07]} c6 {[%emt 0:00:29]} 2. d4 {[%emt 0:00:15]} d5 {[%emt 0:00:19]} 3. Nf3 {[%emt 0:00:04]} Nf6 {[%emt 0:00:06]} 4. e3 {[%emt 0:00:02]} Bf5 {[%emt 0:01:20]} 5. Nc3 {[%emt 0:00:03]} e6 {[%emt 0:00:08]} 6. Nh4 {[%emt 0:00:02]} Be4 {[%emt 0:01:13]} 7. f3 {[%emt 0:00:03]} Bg6 {[%emt 0:00:07]} 8. Bd2 {[%emt 0:00:12]} dxc4 {[%emt 0:01:38]} 9. Bxc4 {[%emt 0:03:18]} b5 {[%emt 0:00:04]} 10. Be2 {[%emt 0:00:33]} Nbd7 {[%emt 0:00:28]} 11. Nxg6 {[%emt 0:00:11]} hxg6 {[%emt 0:00:07]} 12. Qc2 {[%emt 0:00:02]} a6 {[%emt 0:01:35]} 13. Ne4 {[%emt 1:32:08]} Rc8 {[%emt 1:29:26]} 14. a4 {[%emt 0:00:30]} Nxe4 {[%emt 0:00:00]} 15. fxe4 {[%emt 0:00:30]} c5 {[%emt 0:00:00]} 16. d5 {[%emt 0:00:00]} c4 {[%emt 0:00:00]} 17. axb5 axb5 {[%emt 0:00:00]} 18. dxe6 fxe6 {[%emt 0:02:30]} 19. O-O {[%emt 0:02:00]} Qh4 {[%emt 0:00:00]} 20. h3 {[%emt 0:00:00]} Bd6 {[%emt 0:00:00]} 21. e5 {[%emt 0:00:00]} Nxe5 {[%emt 0:00:00]} 22. Ra6 {[%emt 0:00:00]} Qe7 {[%emt 0:00:00]} 23. Bc3 {[%emt 0:00:00]} Rf8 {[%emt 0:00:00]} 24. Rd1 {[%emt 0:00:00]} Nd3 {[%emt 0:00:31]} 25. Bxd3 {[%emt 0:00:00]} cxd3 {[%emt 0:00:03]} 26. Qxd3 {[%emt 0:00:00]} b4 {[%emt 0:02:21]} 27. Rxd6 {[%emt 0:00:00]} 1-0

[Event "48th Ciutat de Badalona Open 2024"]
[Site "Badalona"]
[Date "2024.08.07"]
[Round "6.2"]
[White "Nagare Kaivalya Sandip"]
[Black "Chavez Suarez, Carlos Alberto"]
[Result "1-0"]
[ECO "B06"]
[WhiteElo "2273"]
[BlackElo "2279"]
[Annotator "RC"]
[PlyCount "113"]
[EventDate "2024.07.29"]
[EventType "swiss"]
[EventCountry "ESP"]
[SourceTitle "playchess.com"]
[Source "ChessBase"]
[SourceQuality "1"]
[TimeControl "5400+30"]

1. e4 {[%emt 0:02:11]} g6 {[%emt 0:00:56]} 2. d4 {[%emt 0:00:06]} Bg7 {[%emt 0:00:06]} 3. Nc3 {[%emt 0:00:04]} d5 {[%emt 0:00:04]} 4. exd5 {[%emt 0:07:51]} Nf6 {[%emt 0:00:06]} 5. Bb5+ {[%emt 0:00:12]} Bd7 {[%emt 0:01:08]} 6. Be2 {[%emt 0:00:26]} O-O {[%emt 0:07:26]} 7. Bf3 {[%emt 0:00:29]} Re8 {[%emt 0:01:51]} 8. Nge2 {[%emt 0:00:15]} Bg4 {[%emt 0:00:48]} 9. Bxg4 {[%emt 0:03:14]} Nxg4 {[%emt 0:00:05]} 10. Nf4 {[%emt 0:00:01]} Nf6 {[%emt 0:00:08]} 11. O-O {[%emt 0:03:30]} Nbd7 {[%emt 0:01:44]} 12. Qf3 {[%emt 0:13:16]} Nb6 {[%emt 0:00:17]} 13. Re1 {[%emt 0:07:44]} Qd7 {[%emt 0:01:03]} 14. Nd3 {[%emt 0:00:08]} Nfxd5 {[%emt 0:06:45]} 15. Ne5 {[%emt 0:01:43]} Qf5 {[%emt 0:00:21]} 16. Nxd5 {[%emt 0:06:15]} Qxf3 {[%emt 0:00:05]} 17. Nxf3 {[%emt 0:00:15]} Nxd5 {[%emt 0:00:05]} 18. Bd2 {[%emt 0:02:03]} e6 {[%emt 0:11:13]} 19. c4 {[%emt 0:00:24]} Nb6 {[%emt 0:00:11]} 20. b3 {[%emt 0:01:16]} Red8 {[%emt 0:01:31]} 21. Be3 {[%emt 0:01:31]} Nc8 {[%emt 0:00:15]} 22. Rad1 {[%emt 0:00:24]} Nd6 {[%emt 0:00:20]} 23. Bf4 {[%emt 0:00:37]} c6 {[%emt 0:00:53]} 24. d5 {[%emt 0:00:59]} cxd5 {[%emt 0:01:33]} 25. cxd5 {[%emt 0:00:14]} exd5 {[%emt 0:00:17]} 26. Rxd5 {[%emt 0:00:04]} Nf5 {[%emt 0:00:07]} 27. Red1 {[%emt 0:00:03]} Re8 {[%emt 0:04:46]} 28. Rd7 {[%emt 0:00:48]} Re4 {[%emt 0:00:13]} 29. g3 {[%emt 0:00:52]} b6 {[%emt 0:01:38]} 30. Ng5 {[%emt 0:02:21]} Rd4 {[%emt 0:03:52]} 31. R1xd4 {[%emt 0:00:16]} Nxd4 {[%emt 0:00:04]} 32. Nxf7 {[%emt 0:00:10]} Ne2+ {[%emt 0:00:05]} 33. Kg2 {[%emt 0:00:04]} Nxf4+ {[%emt 0:00:08]} 34. gxf4 {[%emt 0:00:04]} Rf8 {[%emt 0:00:08]} 35. Ng5 {[%emt 0:00:05]} Bb2 {[%emt 0:01:41]} 36. Rxa7 {[%emt 0:00:27]} h6 {[%emt 0:01:05]} 37. Ne6 {[%emt 0:04:12]} Rf6 {[%emt 0:00:06]} 38. Nc7 {[%emt 0:00:08]} Rf7 {[%emt 0:01:04]} 39. Ra8+ {[%emt 0:00:17]} Kg7 {[%emt 0:00:34]} 40. Nd5 {[%emt 0:00:09]} Bd4 {[%emt 0:00:06]} 41. Ra4 {[%emt 0:01:18]} Bc5 {[%emt 0:00:16]} 42. b4 {[%emt 0:00:03]} Bd4 {[%emt 0:00:07]} 43. b5 {[%emt 0:00:23]} Bc5 {[%emt 0:00:06]} 44. Kf3 {[%emt 0:00:07]} Rd7 {[%emt 0:00:16]} 45. Ke4 {[%emt 0:00:30]} Bxf2 {[%emt 0:00:12]} 46. Ra6 {[%emt 0:00:12]} Rb7 {[%emt 0:00:18]} 47. Ke5 {[%emt 0:00:14]} Bc5 {[%emt 0:00:11]} 48. a4 {[%emt 0:00:32]} h5 {[%emt 0:00:36]} 49. Ra8 {[%emt 0:00:13]} Rf7 {[%emt 0:05:37]} 50. Rc8 {[%emt 0:00:54]} Bg1 {[%emt 0:00:04]} 51. h3 {[%emt 0:00:03]} g5 {[%emt 0:00:15]} 52. fxg5 {[%emt 0:00:25]} Rf3 {[%emt 0:00:11]} 53. Ke4 {[%emt 0:01:25]} Rxh3 {[%emt 0:01:25]} 54. Rc7+ {[%emt 0:00:24]} Kf8 {[%emt 0:00:05]} 55. g6 {[%emt 0:00:10]} Rg3 {[%emt 0:00:24]} 56. Rf7+ {[%emt 0:00:26]} Kg8 {[%emt 0:01:27]} 57. Nf6+ {[%emt 0:00:27]} 1-0

[Event "48th Ciutat de Badalona Open 2024"]
[Site "Badalona"]
[Date "2024.08.07"]
[Round "6.3"]
[White "Utsab Chatterjee"]
[Black "Cruz, Filemon"]
[Result "1/2-1/2"]
[ECO "C04"]
[WhiteElo "2289"]
[BlackElo "2249"]
[Annotator "RC"]
[PlyCount "117"]
[EventDate "2024.07.29"]
[EventType "swiss"]
[EventCountry "ESP"]
[SourceTitle "playchess.com"]
[Source "ChessBase"]
[SourceQuality "1"]
[TimeControl "5400+30"]

1. e4 {[%emt 1:31:00]} e6 {[%emt 1:31:00]} 2. d4 {[%emt 0:00:00]} d5 {[%emt 0:00:00]} 3. Nd2 {[%emt 0:01:00]} Nc6 {[%emt 0:00:00]} 4. Ngf3 {[%emt 0:00:30]} Nf6 {[%emt 0:00:00]} 5. e5 {[%emt 0:00:30]} Nd7 {[%emt 0:00:00]} 6. Nb3 {[%emt 0:00:00]} f6 {[%emt 0:00:00]} 7. Bb5 {[%emt 0:01:00]} Be7 {[%emt 0:00:00]} 8. exf6 {[%emt 0:00:00]} Bxf6 {[%emt 0:00:00]} 9. Qe2 {[%emt 0:01:00]} Kf7 {[%emt 0:00:00]} 10. h4 {[%emt 0:00:30]} Re8 {[%emt 0:04:30]} 11. Ng5+ {[%emt 0:00:00]} Kg8 {[%emt 0:00:00]} 12. f4 {[%emt 0:01:00]} Nf8 {[%emt 0:00:00]} 13. c3 {[%emt 0:00:30]} a6 {[%emt 0:00:00]} 14. Bd3 {[%emt 0:00:30]} a5 {[%emt 0:02:00]} 15. Be3 {[%emt 0:00:30]} a4 {[%emt 0:00:00]} 16. Nd2 {[%emt 0:00:30]} Na5 {[%emt 0:01:00]} 17. Ndf3 {[%emt 0:00:00]} Nc4 {[%emt 0:00:30]} 18. Bf2 {[%emt 0:00:00]} a3 {[%emt 0:00:30]} 19. b4 {[%emt 0:00:00]} Nb2 {[%emt 0:00:00]} 20. Bc2 {[%emt 0:00:00]} c5 {[%emt 0:00:00]} 21. bxc5 {[%emt 0:00:00]} b6 {[%emt 0:00:00]} 22. Ne5 {[%emt 0:00:00]} Bxe5 {[%emt 0:00:00]} 23. dxe5 {[%emt 0:00:00]} Ba6 {[%emt 0:00:00]} 24. Qh5 {[%emt 0:00:00]} Bd3 {[%emt 0:00:00]} 25. Qf7+ {[%emt 0:00:00]} Kh8 {[%emt 0:00:00]} 26. Kd2 {[%emt 0:00:00]} Bxc2 {[%emt 0:00:00]} 27. Kxc2 {[%emt 0:00:00]} Re7 {[%emt 0:00:00]} 28. Qh5 {[%emt 0:00:00]} Qd7 {[%emt 0:00:00]} 29. g3 {[%emt 0:00:00]} h6 {[%emt 0:00:22]} 30. cxb6 {[%emt 0:00:00]} Qa4+ {[%emt 0:01:03]} 31. Kd2 {[%emt 0:00:00]} Qc4 {[%emt 0:01:42]} 32. Rhc1 {[%emt 0:00:00]} Qd3+ {[%emt 0:00:31]} 33. Ke1 {[%emt 0:00:00]} Kg8 {[%emt 0:00:25]} 34. Nh3 {[%emt 0:00:00]} Ra4 {[%emt 0:00:13]} 35. c4 {[%emt 0:00:00]} dxc4 {[%emt 0:01:58]} 36. Qe2 {[%emt 0:00:00]} Qd5 {[%emt 0:00:55]} 37. Kf1 {[%emt 0:00:00]} Rb7 {[%emt 0:00:21]} 38. Ng1 {[%emt 0:00:00]} Nd7 {[%emt 0:00:21]} 39. Rd1 {[%emt 0:00:00]} Nd3 {[%emt 0:00:18]} 40. Rab1 {[%emt 0:00:00]} Ra6 {[%emt 0:00:27]} 41. Qf3 {[%emt 0:00:00]} Nxb6 {[%emt 0:00:13]} 42. Qxd5 {[%emt 0:00:00]} exd5 {[%emt 0:00:04]} 43. Rb5 {[%emt 0:00:00]} Nxf2 {[%emt 0:00:44]} 44. Kxf2 {[%emt 0:00:00]} Rc7 {[%emt 0:00:23]} 45. Ne2 {[%emt 0:00:00]} Kf7 {[%emt 0:00:43]} 46. Rdb1 {[%emt 0:00:00]} c3 {[%emt 0:00:10]} 47. Rc1 {[%emt 0:00:00]} Na4 {[%emt 0:00:44]} 48. Ke3 {[%emt 0:00:00]} c2 {[%emt 0:01:04]} 49. Rb3 {[%emt 0:00:00]} Nb2 {[%emt 0:00:34]} 50. Nd4 {[%emt 0:00:00]} Ra4 {[%emt 0:00:48]} 51. Rxc2 {[%emt 0:00:00]} Rcc4 {[%emt 0:00:57]} 52. Rxc4 {[%emt 0:00:00]} Nxc4+ {[%emt 0:00:13]} 53. Ke2 {[%emt 0:00:00]} Nxe5 {[%emt 0:00:16]} 54. Nf5 {[%emt 0:00:00]} Nc6 {[%emt 0:00:26]} 55. Rb7+ {[%emt 0:00:00]} Kf6 {[%emt 0:00:10]} 56. Ne3 {[%emt 0:00:00]} Ke6 {[%emt 0:00:37]} 57. Nc2 {[%emt 0:00:00]} Kd6 {[%emt 0:01:03]} 58. Kd3 {[%emt 0:00:00]} g5 {[%emt 0:02:15]} 59. h5 {[%emt 0:21:30]} 1/2-1/2

[Event "48th Ciutat de Badalona Open 2024"]
[Site "Badalona"]
[Date "2024.08.07"]
[Round "6.4"]
[White "Blasco Coll, Andreu"]
[Black "Nieto Farreny, Francesc"]
[Result "1-0"]
[ECO "B22"]
[WhiteElo "2260"]
[BlackElo "2182"]
[Annotator "RC"]
[PlyCount "109"]
[EventDate "2024.07.29"]
[EventType "swiss"]
[EventCountry "ESP"]
[SourceTitle "playchess.com"]
[Source "ChessBase"]
[SourceQuality "1"]
[TimeControl "5400+30"]

1. e4 {[%emt 0:00:05]} c5 {[%emt 0:11:28]} 2. c3 {[%emt 0:01:09]} d5 {[%emt 0:00:09]} 3. exd5 {[%emt 0:00:07]} Qxd5 {[%emt 0:00:07]} 4. d4 {[%emt 0:00:12]} g6 {[%emt 0:01:00]} 5. Nf3 {[%emt 0:00:22]} Nc6 {[%emt 0:00:06]} 6. Be3 {[%emt 0:00:53]} Bg7 {[%emt 0:00:25]} 7. dxc5 {[%emt 0:01:26]} Qxd1+ {[%emt 0:00:07]} 8. Kxd1 {[%emt 0:00:06]} Nf6 {[%emt 0:00:06]} 9. Nbd2 {[%emt 0:02:44]} O-O {[%emt 0:00:14]} 10. Bc4 {[%emt 0:01:32]} Na5 {[%emt 0:11:10]} 11. Be2 {[%emt 0:02:16]} Ng4 {[%emt 0:02:50]} 12. h3 {[%emt 0:03:02]} Nxe3+ {[%emt 0:00:12]} 13. fxe3 {[%emt 0:00:05]} Bd7 {[%emt 0:08:34]} 14. Kc2 {[%emt 0:11:06]} Rfc8 {[%emt 0:00:39]} 15. b4 {[%emt 0:02:47]} Nc6 {[%emt 0:02:30]} 16. Nd4 {[%emt 0:03:49]} b6 {[%emt 0:03:59]} 17. N2b3 {[%emt 0:05:38]} e5 {[%emt 0:09:11]} 18. Nb5 {[%emt 0:07:12]} Bf8 {[%emt 0:08:00]} 19. cxb6 {[%emt 0:07:34]} axb6 {[%emt 0:06:15]} 20. Kb2 {[%emt 0:01:35]} Bf5 {[%emt 0:06:54]} 21. Bg4 {[%emt 0:12:58]} Bxg4 {[%emt 0:00:04]} 22. hxg4 {[%emt 0:00:04]} e4 {[%emt 0:00:03]} 23. Nd2 {[%emt 0:00:53]} Ne5 {[%emt 0:01:50]} 24. g5 {[%emt 0:04:42]} Nc4+ {[%emt 0:00:05]} 25. Nxc4 {[%emt 0:00:07]} Rxc4 {[%emt 0:00:02]} 26. Kb3 {[%emt 0:02:27]} Rc6 {[%emt 0:02:55]} 27. Rh4 {[%emt 0:02:48]} Re8 {[%emt 0:00:23]} 28. Rd1 {[%emt 0:00:46]} Re5 {[%emt 0:02:45]} 29. c4 {[%emt 0:08:19]} Be7 {[%emt 0:02:54]} 30. Rd5 {[%emt 0:05:32]} Rce6 {[%emt 0:02:13]} 31. Rg4 {[%emt 0:03:45]} Rxd5 {[%emt 0:04:24]} 32. cxd5 {[%emt 0:00:07]} Re5 {[%emt 0:00:01]} 33. Nc3 {[%emt 0:03:35]} Bxg5 {[%emt 0:01:56]} 34. Rxe4 {[%emt 0:00:15]} Rxe4 {[%emt 0:00:08]} 35. Nxe4 {[%emt 0:00:04]} Bxe3 {[%emt 0:00:07]} 36. d6 {[%emt 0:01:18]} Kf8 {[%emt 0:00:17]} 37. Kc4 {[%emt 0:01:34]} f5 {[%emt 0:01:30]} 38. Nf6 {[%emt 0:01:27]} Bd2 {[%emt 0:03:03]} 39. Kd5 {[%emt 0:01:46]} Bxb4 {[%emt 0:03:52]} 40. Ke6 {[%emt 0:00:11]} b5 {[%emt 0:01:32]} 41. d7 {[%emt 0:00:17]} Ba5 {[%emt 0:00:22]} 42. Nxh7+ {[%emt 0:00:43]} Kg7 {[%emt 0:00:02]} 43. Ng5 {[%emt 0:01:22]} Kh6 {[%emt 0:02:51]} 44. Nf7+ {[%emt 0:00:52]} Kh5 {[%emt 0:00:08]} 45. d8=Q {[%emt 0:01:00]} Bxd8 {[%emt 0:00:05]} 46. Nxd8 {[%emt 0:00:08]} Kg4 {[%emt 0:00:13]} 47. Kf6 {[%emt 0:01:09]} f4 {[%emt 0:00:22]} 48. Ne6 {[%emt 0:01:08]} b4 {[%emt 0:00:54]} 49. Kxg6 {[%emt 0:01:17]} f3 {[%emt 0:00:19]} 50. gxf3+ {[%emt 0:00:05]} Kxf3 {[%emt 0:00:01]} 51. Nd4+ {[%emt 0:00:27]} Ke4 {[%emt 0:00:19]} 52. Nc2 {[%emt 0:00:05]} Kd3 {[%emt 0:00:19]} 53. Nxb4+ {[%emt 0:00:04]} Kc3 {[%emt 0:00:09]} 54. a3 {[%emt 0:00:24]} Kb3 {[%emt 0:00:08]} 55. Nc2 {[%emt 0:00:04]} 1-0

[Event "48th Ciutat de Badalona Open 2024"]
[Site "Badalona"]
[Date "2024.08.07"]
[Round "6.5"]
[White "Barath Kalyan M"]
[Black "Iglesias Romero, Jorge"]
[Result "1-0"]
[ECO "A01"]
[WhiteElo "2174"]
[BlackElo "2271"]
[Annotator "RC"]
[PlyCount "47"]
[EventDate "2024.07.29"]
[EventType "swiss"]
[EventCountry "ESP"]
[SourceTitle "playchess.com"]
[Source "ChessBase"]
[SourceQuality "1"]
[TimeControl "5400+30"]

1. b3 {[%emt 0:00:41]} d5 {[%emt 0:00:32]} 2. Bb2 {[%emt 0:00:30]} Bg4 {[%emt 0:00:15]} 3. f3 {[%emt 0:01:17]} Bh5 {[%emt 1:31:13]} 4. d4 Nd7 {[%emt 0:00:00]} 5. Nc3 {[%emt 0:02:28]} c6 6. Qd2 {[%emt 0:00:30]} f6 {[%emt 0:01:30]} 7. O-O-O {[%emt 0:04:33]} Qa5 8. Kb1 {[%emt 0:06:19]} O-O-O {[%emt 0:00:00]} 9. e3 e5 {[%emt 0:00:00]} 10. Nge2 {[%emt 0:15:30]} Bb4 {[%emt 0:00:00]} 11. h4 {[%emt 0:03:28]} Ne7 {[%emt 0:00:00]} 12. a3 {[%emt 0:00:30]} Bd6 {[%emt 0:00:00]} 13. Ng3 {[%emt 0:09:20]} Bf7 {[%emt 0:00:00]} 14. Nxd5 {[%emt 0:00:30]} Qxd2 {[%emt 0:00:00]} 15. Nxe7+ {[%emt 0:00:05]} Bxe7 {[%emt 0:00:00]} 16. Rxd2 {[%emt 0:00:05]} exd4 {[%emt 0:00:00]} 17. exd4 {[%emt 0:53:14]} Bd6 18. Ne4 {[%emt 0:00:00]} Bf4 {[%emt 0:00:00]} 19. Rd1 {[%emt 0:00:00]} Rhe8 {[%emt 0:00:00]} 20. Bd3 {[%emt 0:00:00]} Bg8 {[%emt 0:00:00]} 21. h5 {[%emt 0:00:00]} a5 {[%emt 0:00:00]} 22. a4 {[%emt 0:00:00]} Nf8 {[%emt 0:00:00]} 23. h6 {[%emt 0:03:00]} Rxe4 {[%emt 0:00:00]} 24. hxg7 {[%emt 0:00:00]} 1-0

[Event "48th Ciutat de Badalona Open 2024"]
[Site "Badalona"]
[Date "2024.08.07"]
[Round "6.6"]
[White "Pimpalkhare Vedant"]
[Black "Kshatriya Nitin Vekhande"]
[Result "1-0"]
[ECO "E05"]
[WhiteElo "2191"]
[BlackElo "2173"]
[Annotator "RC"]
[PlyCount "51"]
[EventDate "2024.07.29"]
[EventType "swiss"]
[EventCountry "ESP"]
[SourceTitle "playchess.com"]
[Source "ChessBase"]
[SourceQuality "1"]
[TimeControl "5400+30"]

1. Nf3 {[%emt 1:31:00]} Nf6 {[%emt 0:00:08]} 2. c4 {[%emt 0:00:00]} e6 {[%emt 0:00:03]} 3. g3 {[%emt 0:01:00]} d5 {[%emt 1:31:49]} 4. Bg2 {[%emt 0:00:00]} Be7 {[%emt 0:00:00]} 5. O-O {[%emt 0:00:00]} O-O {[%emt 0:01:00]} 6. d4 {[%emt 0:00:00]} dxc4 {[%emt 0:00:00]} 7. Na3 {[%emt 0:02:00]} c5 {[%emt 0:01:00]} 8. Nxc4 {[%emt 0:00:30]} Nc6 {[%emt 0:00:00]} 9. dxc5 {[%emt 0:00:30]} Bxc5 {[%emt 0:00:00]} 10. a3 {[%emt 0:00:30]} a5 {[%emt 0:01:30]} 11. Bf4 {[%emt 0:00:30]} Nd5 {[%emt 0:00:30]} 12. Rc1 {[%emt 0:00:30]} Qe7 {[%emt 0:00:00]} 13. Qc2 {[%emt 0:00:00]} f6 14. Bd2 {[%emt 0:01:00]} Rd8 {[%emt 0:01:30]} 15. Nxa5 {[%emt 0:00:00]} Bxf2+ {[%emt 0:00:00]} 16. Rxf2 {[%emt 0:00:00]} Nxa5 {[%emt 0:00:00]} 17. Bxa5 {[%emt 0:00:00]} Rxa5 {[%emt 0:00:00]} 18. Qxc8 {[%emt 0:00:00]} b6 {[%emt 0:00:00]} 19. e4 {[%emt 0:00:00]} Ne3 {[%emt 0:00:00]} 20. Qc7 {[%emt 0:00:00]} Rd1+ {[%emt 0:00:00]} 21. Bf1 {[%emt 0:00:00]} Qxc7 {[%emt 0:00:00]} 22. Rxc7 {[%emt 0:00:00]} Ra4 {[%emt 0:00:00]} 23. Rc3 {[%emt 0:00:00]} Ng4 {[%emt 0:01:07]} 24. Rd2 {[%emt 0:00:00]} Rb1 {[%emt 0:00:41]} 25. h3 {[%emt 0:00:00]} Nh6 {[%emt 0:00:36]} 26. Rc7 {[%emt 0:00:00]} 1-0

[Event "48th Ciutat de Badalona Open 2024"]
[Site "Badalona"]
[Date "2024.08.07"]
[Round "6.7"]
[White "Perpinya Rofes, Lluis Maria"]
[Black "Vidarte Morales, Arturo"]
[Result "0-1"]
[ECO "B50"]
[WhiteElo "2189"]
[BlackElo "2166"]
[Annotator "RC"]
[PlyCount "118"]
[EventDate "2024.07.29"]
[EventType "swiss"]
[EventCountry "ESP"]
[SourceTitle "playchess.com"]
[Source "ChessBase"]
[SourceQuality "1"]
[TimeControl "5400+30"]

1. e4 {[%emt 0:00:10]} c5 {[%emt 0:00:07]} 2. Nf3 {[%emt 0:00:18]} d6 {[%emt 0:00:03]} 3. c3 {[%emt 0:00:28]} Nf6 {[%emt 0:01:42]} 4. Bd3 {[%emt 0:00:19]} Nc6 {[%emt 0:00:30]} 5. O-O {[%emt 0:03:00]} g6 {[%emt 0:02:01]} 6. Bc2 {[%emt 1:29:15]} Bg4 {[%emt 1:29:07]} 7. d3 {[%emt 0:00:00]} Bg7 {[%emt 0:00:30]} 8. Nbd2 {[%emt 0:01:00]} d5 {[%emt 0:00:30]} 9. h3 {[%emt 0:00:30]} Bxf3 {[%emt 0:00:00]} 10. Nxf3 {[%emt 0:00:00]} O-O 11. Qe2 {[%emt 0:01:00]} e6 {[%emt 0:01:30]} 12. e5 {[%emt 0:00:00]} Nd7 {[%emt 0:00:00]} 13. Bf4 b5 {[%emt 0:00:00]} 14. Qe3 {[%emt 0:00:00]} a5 {[%emt 0:00:00]} 15. Rfe1 {[%emt 0:02:00]} d4 {[%emt 0:02:00]} 16. cxd4 {[%emt 0:00:30]} cxd4 {[%emt 0:00:00]} 17. Nxd4 {[%emt 0:00:00]} Nxd4 {[%emt 0:00:00]} 18. Qxd4 {[%emt 0:00:00]} Nb6 {[%emt 0:00:00]} 19. Qe4 {[%emt 0:01:30]} Rc8 {[%emt 0:02:00]} 20. d4 {[%emt 0:00:00]} Qd5 {[%emt 0:00:00]} 21. Bd3 {[%emt 0:00:00]} Rfd8 {[%emt 0:00:00]} 22. Qxd5 {[%emt 0:00:00]} Nxd5 {[%emt 0:00:00]} 23. Bg5 {[%emt 0:00:00]} f6 {[%emt 0:00:00]} 24. exf6 {[%emt 0:00:00]} Bxf6 {[%emt 0:00:00]} 25. Bxf6 {[%emt 0:00:00]} Nxf6 {[%emt 0:00:00]} 26. Rxe6 {[%emt 0:00:00]} Kf7 {[%emt 0:00:00]} 27. Rae1 {[%emt 0:00:00]} Rc7 {[%emt 0:00:00]} 28. Bxb5 {[%emt 0:00:00]} Rxd4 {[%emt 0:00:00]} 29. b3 {[%emt 0:00:00]} Rd2 {[%emt 0:00:00]} 30. Bc4 {[%emt 0:00:00]} Kg7 {[%emt 0:00:00]} 31. Re7+ {[%emt 0:00:00]} Rxe7 {[%emt 0:00:00]} 32. Rxe7+ {[%emt 0:00:00]} Kh8 {[%emt 0:00:00]} 33. Re2 {[%emt 0:00:00]} Rd4 {[%emt 0:00:00]} 34. f3 {[%emt 0:00:00]} a4 {[%emt 0:00:00]} 35. Kf2 {[%emt 0:00:00]} axb3 {[%emt 0:00:00]} 36. Bxb3 {[%emt 0:00:00]} Kg7 {[%emt 0:00:00]} 37. Re7+ {[%emt 0:00:00]} Kh8 {[%emt 0:00:00]} 38. Rf7 {[%emt 0:00:00]} Rd6 {[%emt 0:00:00]} 39. g4 {[%emt 0:00:00]} g5 {[%emt 0:00:00]} 40. Ke3 {[%emt 0:01:23]} h5 {[%emt 0:00:00]} 41. gxh5 Nxh5 42. Rf5 {[%emt 0:02:21]} Rh6 {[%emt 0:00:00]} 43. Rxg5 {[%emt 0:02:02]} Ng7 {[%emt 0:00:00]} 44. Rc5 {[%emt 0:01:03]} Kh7 {[%emt 0:00:00]} 45. a4 {[%emt 0:02:34]} Rxh3 {[%emt 0:00:00]} 46. a5 {[%emt 0:00:14]} Rh1 {[%emt 0:00:00]} 47. a6 {[%emt 0:02:02]} Ra1 {[%emt 0:00:00]} 48. Bc2+ {[%emt 0:00:24]} Kg8 {[%emt 0:00:00]} 49. Rc8+ {[%emt 0:00:38]} Kf7 {[%emt 0:00:00]} 50. Rc7+ {[%emt 0:00:20]} Kf6 {[%emt 0:00:00]} 51. a7 {[%emt 0:00:34]} Ra3+ {[%emt 0:00:00]} 52. Kd2 {[%emt 0:01:57]} Ne6 {[%emt 0:00:00]} 53. Rb7 {[%emt 0:00:28]} Nc5 {[%emt 0:00:00]} 54. Rh7 {[%emt 0:00:30]} Ke5 {[%emt 0:00:00]} 55. Kc1 {[%emt 0:00:50]} Kd4 {[%emt 0:00:00]} 56. Kb2 {[%emt 0:00:19]} Ra5 {[%emt 0:00:00]} 57. f4 {[%emt 0:00:34]} Kd5 {[%emt 0:00:00]} 58. f5 {[%emt 0:00:37]} Kd6 {[%emt 0:00:00]} 59. Kc3 {[%emt 0:00:30]} Nd7 {[%emt 0:00:00]} 0-1